bitfinex-derivatives/quotes_ETHF0:USTF0_20251229
["timestamp","ask_amount","ask_price","bid_price","bid_amount"]
[1766968218074,0.16866,2966.9,2964.0,0.789]
[1766968218368,3.794,2967.9,2964.3,1.64302403]
[1766968218573,0.16866,2966.9,2964.4,4.853]
[1766968218771,0.16866,2966.9,2965.4,0.00505671]
[1766968219071,0.00505671,2965.9,2965.4,0.00505671]
[1766968219269,40.96861,2967.8,2965.5,4.37058124]
[1766968219672,0.16861,2967.7,2965.5,4.37058124]
[1766968219873,0.16781,2967.7,2965.5,4.37058124]
[1766968220075,0.16782,2967.6,2965.5,4.37058124]
[1766968220279,0.16863,2967.4,2965.5,4.37058124]
[1766968220470,0.00276806,2967.6,2965.5,4.37058124]
[1766968220662,0.00196806,2967.6,2965.5,4.37058124]
[1766968220873,0.16867,2966.7,2965.4,0.00505671]
[1766968221076,0.14779732,2966.7,2965.4,0.00505671]
[1766968221268,0.14688101,2966.7,2965.4,0.00505671]
[1766968221469,0.16868,2966.5,2965.4,0.00505671]
[1766968221664,5.504,2967.1,2965.4,0.00505671]
[1766968221977,0.16871,2965.9,2964.4,0.00433401]
[1766968222275,0.16872,2965.8,2964.4,0.00433401]
[1766968222465,0.16872,2965.7,2964.4,0.00433401]
[1766968222674,2.653,2966.1,2964.4,0.00433401]
[1766968222871,0.16876,2965.1,2962.7,1.37003338]
[1766968223078,0.16876,2965.1,2963.2,1.37003338]
[1766968223473,0.16876,2965.1,2962.9,1.37003338]
[1766968223779,0.00277421,2965.1,2963.4,1.37003338]
[1766968224076,0.00277421,2965.1,2964.0,0.00505671]
[1766968224481,0.336,2966.0,2964.1,5.80371421]
[1766968225076,0.00505671,2965.3,2964.1,5.80371421]
[1766968225276,0.336,2966.0,2964.1,5.80371421]
[1766968225580,0.00269674,2965.3,2964.1,5.80371421]
[1766968225876,0.00269674,2965.3,2964.1,4.43368083]
[1766968226580,0.00269674,2965.3,2964.1,5.80371421]
[1766968226968,0.00269674,2965.3,2964.1,4.43368083]
[1766968227172,0.00269674,2965.3,2964.0,0.00505671]
[1766968231175,0.16876,2965.1,2964.0,0.00505671]
[1766968231376,0.00269674,2965.3,2962.9,0.00359535]
[1766968231681,0.16881,2964.3,2962.9,0.00359535]
[1766968232074,5.498,2964.4,2962.9,0.00359535]
[1766968232272,0.16884,2963.7,2962.0,0.08920722]
[1766968232474,0.16885,2963.6,2962.0,0.08920722]
[1766968232776,0.00505671,2963.9,2962.1,4.31623491]
[1766968233181,0.00505671,2963.9,2962.1,4.31970483]
[1766968233382,0.00505671,2963.9,2962.1,0.00346992]
[1766968233584,0.00505671,2963.9,2962.7,0.00505671]
[1766968233986,0.00505671,2963.9,2962.8,0.4281503]
[1766968234182,0.00505671,2963.9,2962.9,0.4281503]
[1766968234487,0.00505671,2963.9,2963.0,0.4281503]
[1766968234684,0.00505671,2963.9,2963.1,0.4281503]
[1766968234886,0.1688,2964.3,2963.2,0.4281503]
[1766968235185,0.1688,2964.3,2963.3,0.4281503]
[1766968235385,40.8,2964.9,2963.4,0.4281503]
[1766968235683,5.4988,2964.8,2963.5,0.4281503]
[1766968235882,0.00505671,2964.4,2963.6,0.2539503]
[1766968236189,0.00505671,2964.4,2962.7,0.00505671]
[1766968236885,0.00505671,2964.4,2962.7,0.98977105]
[1766968237886,0.00505671,2964.4,2963.1,0.98471434]
[1766968239787,0.00505671,2964.4,2963.5,0.98471434]
[1766968240181,0.00269674,2965.3,2963.9,0.98471434]
[1766968240382,5.516,2965.2,2963.9,0.98471434]
[1766968240975,5.516,2965.2,2963.5,0.98471434]
[1766968241180,5.516,2965.2,2962.4,0.16891]
[1766968241181,0.17144674,2965.3,2964.1,0.00505671]
[1766968241387,0.17144674,2965.3,2964.3,0.98471434]
[1766968241586,0.00269674,2965.3,2964.3,0.00317835]
[1766968242688,0.00269674,2965.3,2964.7,0.98471434]
[1766968242888,5.518,2965.6,2964.3,0.98789269]
[1766968243083,0.336,2966.0,2965.1,0.98471434]
[1766968243395,0.16866,2966.8,2964.4,4.372344]
[1766968243592,0.16866,2966.8,2965.3,0.00505671]
[1766968244086,0.17225535,2966.8,2965.3,0.00505671]
[1766968244481,0.17225535,2966.8,2965.4,0.98471434]
[1766968244889,2.622,2967.3,2965.8,0.98471434]
[1766968245095,0.16862,2967.6,2966.2,0.98471434]
[1766968245280,0.16862,2967.6,2966.6,0.00505671]
[1766968245597,5.518,2968.4,2966.6,0.98977105]
[1766968245891,0.88313209,2968.3,2966.6,0.92609637]
[1766968246091,5.519,2968.5,2966.6,0.00422532]
[1766968246384,0.88284687,2968.4,2966.6,0.00422532]
[1766968246589,6.50371434,2968.5,2966.6,0.00422532]
[1766968246781,0.88285469,2968.4,2966.6,0.00422532]
[1766968246981,0.16862,2967.5,2966.6,0.00422532]
[1766968248093,0.16862,2967.5,2966.6,2.532e-05]
[1766968248290,0.16865,2967.1,2965.0,0.98471434]
[1766968248484,0.98471434,2968.4,2965.8,0.98471434]
[1766968248684,0.1686,2967.9,2965.8,0.98471434]
[1766968248884,0.1686,2967.9,2966.2,0.98471434]
[1766968249190,0.00357077,2967.9,2966.8,0.00505671]
[1766968250186,0.00505671,2967.6,2966.8,0.00505671]
[1766968253087,0.16863,2967.4,2966.2,0.00322199]
[1766968253291,0.00505671,2967.6,2966.3,0.98471434]
[1766968253501,0.00505671,2967.6,2966.3,5.35174931]
[1766968254091,0.00505671,2967.6,2966.7,0.98977105]
[1766968254301,0.00505671,2967.6,2966.7,0.00505671]
[1766968258101,0.00357077,2967.9,2966.7,0.00505671]
[1766968259289,0.00505671,2967.6,2966.7,6.71e-06]
[1766968260201,0.00357077,2967.9,2966.8,4.37298442]
[1766968260401,0.16854,2968.9,2966.9,1.36938184]
[1766968260705,0.16854,2968.9,2966.8,4.37298442]
[1766968260706,1.36938184,2970.5,2967.4,1.36938184]
[1766968260999,0.16845,2970.5,2968.4,1.36938184]
[1766968261198,0.03455581,2970.6,2969.2,6.71e-06]
[1766968261406,0.16849,2969.9,2969.2,0.002583]
[1766968261805,0.16845,2970.5,2969.2,0.002583]
[1766968262201,3.635,2971.1,2969.2,0.002583]
[1766968262202,0.00505671,2970.1,2969.2,0.002583]
[1766968262504,5.509,2971.8,2969.3,4.36470017]
[1766968262704,1.36938184,2971.3,2967.9,1.36938184]
[1766968262900,0.16846,2970.4,2968.0,1.36938184]
[1766968263199,0.642,2971.1,2968.1,4.30223716]
[1766968263392,0.758,2971.3,2968.1,5.671619]
[1766968263596,0.16847,2970.3,2968.1,1.36938184]
[1766968263797,0.00504999,2969.5,2968.9,0.00505671]
[1766968264000,0.00504999,2969.5,2968.1,0.00360872]
[1766968264397,0.00504999,2969.5,2968.3,1.36938184]
[1766968264597,0.00323084,2970.3,2968.3,6.57838184]
[1766968264808,0.00226871,2970.3,2968.8,1.36938184]
[1766968265004,0.00125848,2970.3,2968.8,1.36938184]
[1766968265197,0.16841,2971.3,2968.9,4.47286353]
[1766968265395,0.16729622,2971.3,2969.0,5.209]
[1766968265598,0.00505671,2970.4,2968.3,1.36938184]
[1766968265799,0.00505671,2970.4,2969.1,4.47286353]
[1766968265995,2.3804082,2973.0,2969.4,1.36938184]
[1766968265996,0.1684,2971.4,2969.4,1.36938184]
[1766968266199,0.1683,2973.1,2970.3,1.36938184]
[1766968266407,0.16707205,2973.1,2970.7,1.36938184]
[1766968266709,0.16831,2973.1,2971.4,1.36938184]
[1766968266913,0.16695619,2973.1,2971.1,1.36938184]
[1766968267101,0.00502638,2972.5,2972.0,0.00504762]
[1766968267407,9.99728916,2973.3,2972.0,0.00504762]
[1766968267615,9.99728916,2973.3,2972.3,1.36938184]
[1766968267616,6.02749587,2973.3,2972.3,1.36938184]
[1766968267908,3.49479587,2973.3,2972.4,4.43444048]
[1766968268105,0.00952496,2974.5,2972.8,1.36938184]
[1766968268305,0.00803238,2974.5,2973.3,1.36938184]
[1766968268501,0.00803238,2974.5,2972.4,8.048845]
[1766968268502,3.37099477,2974.5,2972.9,4.40664121]
[1766968268707,0.16823,2974.4,2972.4,0.00340968]
[1766968269106,0.00646518,2974.5,2972.4,0.00340968]
[1766968269309,0.16825,2974.0,2972.5,4.14413863]
[1766968269500,0.16825,2974.0,2970.3,25.03838115]
[1766968269501,0.16828,2973.5,2970.5,1.36938184]
[1766968269701,0.17332762,2973.5,2970.6,1.36938184]
[1766968269906,1.54270946,2973.5,2971.3,4.39713271]
[1766968270103,1.36938184,2973.0,2969.6,1.36938184]
[1766968270299,1.40456461,2973.9,2970.3,1.36938184]
[1766968270499,1.36938184,2972.5,2970.5,4.36160798]
[1766968270701,0.00504762,2971.8,2971.2,0.00504762]
[1766968270908,0.0084573,2971.8,2970.3,0.00356151]
[1766968271110,1.36938184,2971.6,2970.3,0.00356151]
[1766968271401,0.0084573,2971.8,2970.3,0.00356151]
[1766968271907,0.0084573,2971.8,2970.8,0.00504762]
[1766968272303,0.0084573,2971.8,2970.9,4.41258157]
[1766968272810,0.0084573,2971.8,2970.3,0.00356151]
[1766968272811,0.1768373,2971.8,2970.3,0.00356151]
[1766968273007,0.0084573,2971.8,2970.3,0.00356151]
[1766968273200,0.0084573,2971.8,2970.4,4.35468454]
[1766968273400,0.0084573,2971.8,2970.3,0.00860913]
[1766968273604,0.0084573,2971.8,2970.8,0.00504762]
[1766968274510,0.0084573,2971.8,2970.3,0.00356151]
[1766968274716,0.0084573,2971.8,2970.4,0.00504762]
[1766968275117,0.0084573,2971.8,2970.4,4.3004922]
[1766968275310,0.3363,2972.4,2970.4,4.3004922]
[1766968275809,0.22680747,2974.2,2971.3,1.36938184]
[1766968276010,1.36938184,2974.0,2970.8,1.36938184]
[1766968276212,1.53766184,2973.5,2970.5,5.2]
[1766968276410,0.00504762,2972.3,2971.7,0.00504762]
[1766968276606,0.00504762,2972.3,2970.3,1.37294335]
[1766968276607,0.00504762,2972.3,2970.3,0.00356151]
[1766968276804,0.00504762,2972.3,2971.0,0.00504762]
[1766968277309,4.762e-05,2972.3,2971.1,4.45299026]
[1766968277511,0.16826,2973.9,2971.2,1.36938184]
[1766968277708,0.00646518,2974.5,2972.1,1.36938184]
[1766968278015,0.00646518,2974.5,2972.2,4.46113506]
[1766968278209,0.00646518,2974.5,2972.2,4.46618268]
[1766968278513,0.00504762,2973.6,2973.1,0.00504762]
[1766968278707,0.00504762,2973.6,2973.1,0.00827836]
[1766968279013,0.00504762,2973.6,2971.4,3.0934]
[1766968279219,0.00504762,2973.6,2971.7,0.00504762]
[1766968279427,1.53763184,2974.2,2971.7,0.00504762]
[1766968279714,1.36938184,2973.7,2971.4,4.32811629]
[1766968279907,0.1683,2973.2,2970.6,1.36938184]
[1766968280107,0.00504762,2972.2,2971.6,0.00504762]
[1766968280312,0.00504762,2972.2,2970.7,4.36768573]
[1766968280518,0.00504762,2972.2,2970.6,0.00356925]
[1766968281211,0.00504762,2972.2,2970.7,0.00504762]
[1766968281412,0.00504762,2972.2,2971.2,0.00336506]
[1766968281806,0.00504762,2972.2,2971.3,0.00504762]
[1766968282010,0.00504762,2972.2,2971.2,0.00336506]
[1766968282210,0.00504762,2972.2,2970.6,0.00356925]
[1766968282808,0.16837,2972.0,2970.6,0.00356925]
[1766968283008,0.16837,2972.0,2968.3,1.63926035]
[1766968283009,0.16839,2971.6,2967.9,0.1686]
[1766968283213,0.16839,2971.6,2968.6,0.00504762]
[1766968283519,0.16839,2971.5,2969.1,4.38094713]
[1766968283720,0.16839,2971.5,2968.6,0.00504762]
[1766968284018,0.16839,2971.5,2969.2,4.38094713]
[1766968284219,0.00504762,2970.6,2970.1,0.00504762]
[1766968284416,0.16839,2971.5,2970.1,0.00504762]
[1766968284620,5.492,2971.9,2970.1,0.01009524]
[1766968284813,5.492,2971.9,2970.1,0.00504762]
[1766968285420,0.16842,2971.1,2970.1,0.00504762]
[1766968285617,0.00504762,2971.3,2968.6,0.00320525]
[1766968285925,0.16843,2970.9,2968.7,4.43127414]
[1766968286115,0.16843,2970.9,2968.9,0.00504762]
[1766968286526,0.16844,2970.8,2969.6,0.00504762]
[1766968288022,40.80504762,2971.3,2968.6,0.00320525]
[1766968288222,0.16846,2970.4,2968.6,0.00320525]
[1766968288828,0.16846,2970.4,2968.7,0.00504762]
[1766968289024,0.00504762,2969.8,2968.6,0.00320525]
[1766968289214,0.1685,2969.6,2966.2,0.16869]
[1766968289420,0.1685,2969.6,2965.9,25.22226035]
[1766968289421,0.16851,2969.5,2967.6,0.005]
[1766968289923,0.00285952,2969.8,2967.6,0.005]
[1766968290128,0.00285952,2969.8,2967.7,4.44463926]
[1766968290426,0.00504762,2969.0,2967.7,4.44463926]
[1766968290727,0.00504762,2969.0,2967.6,0.00826547]
[1766968290923,0.00285952,2969.8,2967.7,4.39284464]
[1766968291623,0.16844,2970.8,2968.0,0.16859]
[1766968291928,0.00504762,2969.7,2968.1,4.31340002]
[1766968292225,0.00504762,2969.7,2967.9,4.41270799]
[1766968292425,40.8,2971.0,2967.9,4.41270799]
[1766968292426,5.5,2970.8,2968.2,4.41270799]
[1766968292629,0.00372511,2970.8,2968.5,0.16856]
[1766968292821,0.00372511,2970.8,2968.3,3.72533438]
[1766968293021,0.00372511,2970.8,2968.9,0.16854]
[1766968293526,0.00504762,2970.1,2969.6,0.00504762]
[1766968293724,0.00372511,2970.8,2969.6,0.00504762]
[1766968294732,0.00504762,2970.5,2969.6,0.00504762]
[1766968295827,0.17350762,2970.5,2967.7,1.592]
[1766968296031,0.17350762,2970.5,2968.3,0.00504762]
[1766968296234,0.17350762,2970.5,2968.3,4.45346342]
[1766968296428,0.16847,2970.2,2967.8,4.4484158]
[1766968296630,0.16847,2970.2,2967.6,0.00326547]
[1766968296929,0.16848,2970.1,2967.7,4.44257074]
[1766968297133,0.16848,2970.1,2967.6,0.00326547]
[1766968297344,0.16848,2970.1,2967.8,0.00504762]
[1766968297639,0.16848,2970.1,2967.9,4.32238404]
[1766968297830,0.16848,2970.1,2968.7,0.00504762]
[1766968299131,0.00504762,2970.5,2968.7,0.00504762]
[1766968299428,0.16846,2970.3,2968.7,0.00504762]
[1766968299834,40.8,2970.2,2968.7,0.00504762]
[1766968300231,40.96847,2970.2,2968.0,0.00504762]
[1766968300423,40.8,2970.2,2968.0,0.00504762]
[1766968300629,0.1685,2969.6,2967.6,0.00326547]
[1766968300829,40.8,2970.2,2967.6,0.00326547]
[1766968300830,0.16851,2969.5,2967.6,0.00326547]
[1766968301233,0.00504762,2968.8,2967.8,0.00504762]
[1766968303634,0.1685,2969.7,2967.9,4.36467889]
[1766968304735,0.00504762,2969.1,2968.5,0.00504762]
[1766968305140,0.3368,2969.0,2968.5,0.00504762]
[1766968305742,0.3368,2969.0,2967.8,0.00504762]
[1766968306542,0.16854,2968.9,2967.6,0.00326547]
[1766968306750,0.16854,2968.9,2968.0,0.00504762]
[1766968307335,0.16854,2968.9,2967.6,0.00326547]
[1766968307534,0.16854,2968.9,2967.8,0.00504762]
[1766968309241,0.16855,2968.8,2967.8,0.00504762]
[1766968309448,0.16855,2968.8,2967.6,0.00326547]
[1766968310048,0.3368,2969.0,2967.6,0.00326547]
[1766968312839,0.3368,2969.0,2967.7,4.42059769]
[1766968313446,0.0099,2969.0,2967.7,4.42059769]
[1766968313746,0.16846,2970.4,2967.8,0.1686]
[1766968314142,0.16846,2970.4,2967.9,4.28012461]
[1766968314547,0.00504762,2969.4,2968.9,0.00504762]
[1766968315749,2.642,2970.5,2968.9,0.00504762]
[1766968316457,0.16849,2969.8,2967.9,4.28012461]
[1766968316949,0.16849,2969.8,2967.7,4.30964812]
[1766968317155,0.16849,2969.8,2967.6,0.00326547]
[1766968317344,0.16849,2969.8,2967.7,4.30535782]
[1766968317546,5.499,2970.3,2968.5,0.00504762]
[1766968318452,0.16849,2969.9,2968.5,0.00504762]
[1766968318753,0.00504762,2969.5,2968.5,0.00504762]
[1766968321244,0.16845,2970.5,2968.6,4.41515229]
[1766968321448,0.00372511,2970.8,2968.6,4.27095229]
[1766968321952,0.16844,2970.7,2968.6,4.27095229]
[1766968322154,0.00504762,2969.9,2968.6,4.27095229]
[1766968324353,0.00372511,2970.8,2968.6,4.43951229]
[1766968325355,0.00372511,2970.8,2968.7,0.16855]
[1766968325751,0.00372511,2970.8,2968.8,4.45754626]
[1766968326351,0.00504762,2970.1,2968.8,4.45754626]
[1766968326951,0.00504762,2970.1,2968.8,9.63854626]
[1766968327451,0.17216511,2970.8,2968.8,9.63854626]
[1766968327666,0.17216511,2970.8,2968.8,16.05354626]
[1766968327857,0.00372511,2970.8,2968.8,9.63854626]
[1766968328052,0.00372511,2970.8,2968.9,3.68936493]
[1766968328447,0.00336506,2970.1,2969.1,0.16853]
[1766968328852,0.00372511,2970.8,2969.2,4.41189587]
[1766968329860,0.00372511,2970.8,2968.9,4.5985543]
[1766968330159,0.00372511,2970.8,2968.9,3.82357649]
[1766968330351,0.00372511,2970.8,2969.0,4.29698015]
[1766968330855,0.16836,2972.1,2969.6,0.1685]
[1766968331054,0.16837,2971.9,2970.6,0.00504762]
[1766968331455,0.16834,2972.5,2970.6,0.00504762]
[1766968331656,0.16834,2972.5,2970.6,0.00932073]
[1766968332659,0.16834,2972.5,2970.7,4.40588664]
[1766968333960,0.1683,2973.2,2970.7,4.40588664]
[1766968334161,0.16831,2973.1,2970.7,4.40588664]
[1766968334367,0.16831,2973.1,2970.8,5.182]
[1766968334758,0.16831,2973.1,2970.9,4.35374246]
[1766968334960,5.486,2974.4,2970.9,4.35374246]
[1766968335173,0.16827,2973.8,2972.4,0.00504762]
[1766968335461,0.16828,2973.6,2972.4,0.00504762]
[1766968335663,40.8,2974.3,2971.3,3.739]
[1766968336055,5.485,2974.2,2971.4,4.32727096]
[1766968336760,0.00504762,2973.1,2972.5,0.00504762]
[1766968337858,0.17335762,2973.1,2971.4,4.32727096]
[1766968338069,0.17335762,2973.1,2970.6,3.23927311]
[1766968338262,0.17335762,2973.1,2970.6,3.40771311]
[1766968338570,0.17335762,2973.1,2970.7,4.29972856]
[1766968338769,0.16831,2973.0,2971.6,0.00504762]
[1766968339062,0.16831,2973.0,2971.7,4.29972856]
[1766968339260,0.16831,2973.0,2971.6,0.00504762]
[1766968339858,0.16832,2972.9,2971.6,0.00504762]
[1766968340667,0.00504762,2973.1,2971.7,1.36442199]
[1766968340869,0.00504762,2973.1,2971.7,5.74440167]
[1766968341560,5.65624,2974.3,2972.2,1.36442199]
[1766968341763,0.00851658,2974.6,2972.2,1.36442199]
[1766968341959,0.547,2974.4,2972.2,1.36442199]
[1766968342160,40.8,2974.4,2972.2,1.36442199]
[1766968342464,5.487,2974.4,2972.2,1.36442199]
[1766968342670,0.00504762,2973.6,2972.3,4.43919045]
[1766968342865,0.00504762,2973.6,2972.7,0.00504762]
[1766968343067,0.00504762,2973.6,2972.7,0.00779912]
[1766968345669,0.16828,2973.5,2971.7,1.36442199]
[1766968346066,0.16828,2973.5,2971.8,4.36967277]
[1766968346771,0.0027515,2973.5,2972.4,0.00504762]
[1766968348177,0.1710315,2973.5,2972.4,0.00504762]
[1766968348761,0.16829,2973.4,2972.4,0.00504762]
[1766968349575,0.0027515,2973.5,2972.4,0.00504762]
[1766968349874,0.16824,2974.2,2972.7,0.97873067]
[1766968350065,0.98519585,2974.5,2972.5,4.36346117]
[1766968350266,0.00646518,2974.5,2972.7,0.97873067]
[1766968350577,0.00646518,2974.5,2973.1,0.97873067]
[1766968350782,0.00504762,2974.1,2973.1,0.97873067]
[1766968350978,0.00504762,2974.1,2972.7,0.97873067]
[1766968351371,0.00504762,2974.1,2972.8,4.46324914]
[1766968351667,0.00504762,2974.1,2972.7,0.97873067]
[1766968351868,0.00504762,2974.1,2972.8,4.36246213]
[1766968352065,0.00504762,2974.1,2972.7,0.97873067]
[1766968352274,0.00504762,2974.1,2972.8,4.36246213]
[1766968352577,0.00504762,2974.1,2973.1,0.97873067]
[1766968352875,0.00504762,2974.1,2973.2,4.28693437]
[1766968353279,0.00504762,2974.1,2973.0,4.28693437]
[1766968353572,0.16823,2974.4,2972.5,0.97873067]
[1766968353768,0.16824,2974.2,2972.5,0.97873067]
[1766968353964,0.16824,2974.2,2972.4,0.00504762]
[1766968353965,0.16826,2973.9,2972.7,4.42429629]
[1766968354165,0.16827,2973.7,2972.4,0.00504762]
[1766968354775,0.97873067,2973.9,2972.4,0.00504762]
[1766968354980,0.16831,2973.1,2971.8,0.00337717]
[1766968355179,0.97873067,2973.5,2971.8,0.00337717]
[1766968355476,0.16831,2973.1,2971.8,0.00337717]
[1766968355869,0.00504762,2972.7,2972.2,7.62e-06]
[1766968356078,0.16834,2972.6,2970.8,0.97873067]
[1766968356470,0.16834,2972.6,2971.2,0.97873067]
[1766968357171,0.17340762,2972.2,2971.2,0.00269316]
[1766968357775,0.00504762,2972.2,2971.2,0.00607033]
[1766968358078,0.00504762,2972.2,2971.4,0.00504762]
[1766968358280,0.00504762,2972.2,2971.4,0.00842479]
[1766968359373,0.00504762,2972.2,2971.4,0.00504762]
[1766968359877,0.17340762,2972.2,2971.2,0.00269316]
[1766968360182,0.97873067,2971.9,2969.6,0.97873067]
[1766968360379,0.97873067,2971.9,2969.6,0.98210784]
[1766968360579,0.16839,2971.6,2969.7,4.36929538]
[1766968360777,0.1684,2971.5,2969.7,4.37267255]
[1766968361076,0.97873067,2971.9,2970.4,0.00504762]
[1766968361377,0.16836,2972.1,2970.4,0.00504762]
[1766968361568,0.00504762,2972.2,2970.4,0.00504762]
[1766968361768,0.16837,2971.9,2970.4,0.00504762]
[1766968362269,0.00504762,2972.2,2970.4,0.00504762]
[1766968362474,0.16838,2971.8,2970.4,0.00504762]
[1766968362776,0.00504762,2972.2,2970.4,0.00842479]
[1766968364573,0.00504762,2972.2,2970.5,4.3244399]
[1766968365371,0.16837,2971.9,2970.4,0.00504762]
[1766968365974,0.16837,2971.9,2970.4,0.00842479]
[1766968366174,0.16837,2971.9,2970.4,0.00504762]
[1766968367185,0.16837,2971.9,2970.5,0.00337717]
[1766968367682,0.16837,2971.9,2970.4,0.00504762]
[1766968367883,0.16839,2971.7,2970.4,0.00504762]
[1766968369181,0.16839,2971.7,2970.7,0.00337717]
[1766968369782,0.16839,2971.7,2970.8,0.00337717]
[1766968369981,0.1684,2971.4,2970.4,0.00504762]
[1766968370287,0.16841,2971.2,2969.7,0.98248515]
[1766968370489,0.16841,2971.2,2969.9,0.00337717]
[1766968371191,0.16841,2971.2,2970.3,0.00504762]
[1766968374292,0.16838,2971.9,2970.6,0.97873067]
[1766968374588,0.16838,2971.9,2970.7,0.00337717]
[1766968374786,0.16838,2971.9,2970.3,0.00504762]
[1766968374787,0.16838,2971.9,2970.6,0.97873067]
[1766968375190,0.16838,2971.9,2970.5,0.00337717]
[1766968377486,0.16838,2971.9,2970.6,5.26086073]
[1766968377792,0.00504762,2972.2,2971.0,0.97873067]
[1766968377992,0.00504762,2972.2,2970.6,5.26086073]
[1766968378192,0.00504762,2972.2,2970.6,0.97873067]
[1766968378388,0.17340762,2972.2,2970.7,4.37277485]
[1766968378597,0.16836,2972.1,2970.5,0.00337717]
[1766968378795,0.16837,2971.9,2970.4,0.00337717]
[1766968379493,0.16837,2971.9,2970.5,0.00337717]
[1766968379690,0.16838,2971.8,2970.3,0.00504762]
[1766968380593,0.00504762,2972.2,2970.5,0.97873067]
[1766968380989,0.00504762,2972.2,2970.9,0.97873067]
[1766968381390,0.00504762,2972.2,2971.0,4.29144777]
[1766968381992,0.00504762,2972.2,2971.1,0.00337717]
[1766968382188,0.00504762,2972.2,2970.3,0.00504762]
[1766968382399,0.16836,2972.1,2970.3,0.00504762]
[1766968382790,0.16837,2972.0,2970.4,0.00337717]
[1766968382992,0.16838,2971.8,2970.3,0.00504762]
[1766968383696,0.00504762,2972.2,2970.6,0.97873067]
[1766968384198,0.00504762,2972.2,2971.0,0.97873067]
[1766968384398,0.00504762,2972.2,2971.4,0.97873067]
[1766968384702,0.0025415,2972.6,2971.4,0.97873067]
[1766968384895,0.16826,2974.0,2972.2,0.97873067]
[1766968385196,0.00646518,2974.5,2972.2,0.97873067]
[1766968385197,0.97873067,2974.3,2972.2,0.97873067]
[1766968385392,0.97873067,2973.9,2971.4,0.97873067]
[1766968385593,0.00504762,2972.9,2971.9,0.97873067]
[1766968385794,0.00857645,2972.9,2971.9,0.98199111]
[1766968386293,0.16826,2973.9,2972.3,0.97873067]
[1766968386494,0.97873067,2974.3,2972.3,0.97873067]
[1766968386695,0.97873067,2974.3,2971.9,0.00326044]
[1766968386992,41.77873067,2974.3,2972.1,0.97873067]
[1766968387398,0.00504762,2973.5,2972.9,0.00504762]
[1766968387798,0.00504762,2973.5,2972.1,0.97873067]
[1766968388199,0.17332762,2973.5,2972.1,0.97873067]
[1766968388706,0.17332762,2973.5,2971.9,0.00326044]
[1766968388707,0.16831,2973.1,2971.9,0.00326044]
[1766968388902,0.16831,2973.1,2972.2,0.00504762]
[1766968389103,0.16831,2973.1,2971.5,0.95814736]
[1766968389302,0.16831,2973.0,2971.5,0.95814736]
[1766968389802,0.00504762,2973.5,2971.9,0.97873067]
[1766968390205,0.16829,2973.4,2972.4,0.00336506]
[1766968390398,0.00811034,2973.5,2971.9,0.00436659]
[1766968390399,0.1683,2973.2,2971.9,0.00436659]
[1766968390796,0.1683,2973.1,2971.9,0.00436659]
[1766968390995,0.16831,2973.0,2971.9,0.00436659]
[1766968391195,0.16832,2972.9,2971.9,0.00436659]
[1766968392395,0.16832,2972.8,2971.9,0.00436659]
[1766968392799,0.16833,2972.7,2971.1,0.97873067]
[1766968392994,0.16833,2972.7,2971.5,0.97873067]
[1766968393193,0.16829,2973.4,2971.5,0.97873067]
[1766968394005,0.16829,2973.4,2971.6,4.34925753]
[1766968394201,0.00504762,2972.8,2972.2,0.00504762]
[1766968394403,0.16829,2973.4,2972.4,0.97873067]
[1766968394797,0.16829,2973.4,2972.2,0.00504762]
[1766968395302,0.17334762,2973.1,2972.2,0.00504762]
[1766968395600,0.16833,2972.8,2971.5,0.00281473]
[1766968396700,0.00504762,2973.1,2971.9,4.762e-05]
[1766968396900,0.16833,2972.6,2971.9,4.762e-05]
[1766968397405,0.00504762,2973.1,2972.0,0.97873067]
[1766968399107,0.00504762,2973.1,2972.1,4.44729356]
[1766968399408,0.00504762,2973.1,2972.4,0.97873067]
[1766968400605,0.00504762,2973.1,2971.9,4.762e-05]
[1766968401100,0.00504762,2973.1,2972.0,4.47188578]
[1766968401500,0.00504762,2973.1,2971.9,4.762e-05]
[1766968401906,0.17334762,2973.1,2971.9,4.762e-05]
[1766968402303,0.16831,2973.0,2971.9,4.762e-05]
[1766968402711,0.16832,2972.9,2971.9,4.762e-05]
[1766968402902,0.16832,2972.8,2971.9,4.762e-05]
[1766968403710,0.16833,2972.7,2971.9,4.762e-05]
[1766968403901,0.16833,2972.6,2971.9,4.762e-05]
[1766968404203,0.16834,2972.5,2971.9,4.762e-05]
[1766968404414,0.00504762,2973.1,2970.4,3.02972257]
[1766968404612,0.16833,2972.7,2970.6,1.10892431]
[1766968405005,0.16834,2972.4,2970.3,3.19818257]
[1766968405202,5.459,2973.3,2970.7,4.28718645]
[1766968405407,0.16837,2972.0,2970.7,0.00329012]
[1766968406105,0.16838,2971.8,2970.7,0.00329012]
[1766968406303,0.16839,2971.7,2970.7,0.00329012]
[1766968410814,0.16839,2971.7,2969.4,1.10892431]
[1766968411312,0.16839,2971.7,2969.5,4.44808881]
[1766968411718,0.16839,2971.7,2969.5,4.45147565]
[1766968411907,0.16839,2971.5,2969.5,4.45147565]
[1766968412209,0.00504762,2970.8,2969.5,0.00338684]
[1766968412402,0.00748777,2970.8,2969.5,0.00338684]
[1766968413716,0.17592777,2970.8,2969.5,0.00338684]
[1766968417507,0.16844,2970.7,2969.5,0.00338684]
[1766968420705,0.00748777,2970.8,2969.5,0.00338684]
[1766968420915,0.00748777,2970.8,2969.6,4.36715108]
[1766968421716,10.375,2971.7,2969.6,4.36715108]
[1766968421923,0.16837,2972.0,2969.6,4.36715108]
[1766968422720,0.00504762,2971.1,2970.5,0.00504762]
[1766968424822,0.00504762,2971.1,2969.6,4.36715108]
[1766968427111,0.00504762,2971.1,2969.5,0.00338684]
[1766968427621,0.16843,2970.9,2969.5,0.00338684]
[1766968428416,0.16844,2970.7,2969.5,0.00338684]
[1766968428615,0.16845,2970.6,2969.5,0.00338684]
[1766968428819,0.16845,2970.5,2969.5,0.00338684]
[1766968429024,0.16846,2970.4,2968.6,1.44285722]
[1766968429522,0.16846,2970.4,2968.7,4.38055576]
[1766968429919,0.16846,2970.4,2968.7,4.38363072]
[1766968430426,0.16846,2970.3,2968.7,0.00307496]
[1766968430820,46.25404762,2971.1,2968.7,0.00307496]
[1766968431021,1.10892431,2970.8,2968.7,0.00307496]
[1766968431221,0.16848,2970.1,2968.7,0.00307496]
[1766968432627,0.16848,2970.0,2968.7,0.00307496]
[1766968432821,0.16849,2969.9,2968.7,0.00307496]
[1766968433024,0.00504762,2969.6,2968.7,0.00307496]
[1766968433417,0.00504762,2969.6,2967.6,3.02972257]
[1766968433623,0.00504762,2969.6,2968.3,1.10892431]
[1766968433826,0.00328881,2969.9,2968.3,1.10892431]
[1766968434128,0.00328881,2969.9,2968.4,4.33644652]